fUST/lending_fUST_20250814
["ID","MTS","AMOUNT","RATE_DAILY","PERIOD"]
[379051138,1755101474083,-460.0,0.00021643,2]
[379051139,1755101474092,-460.0,0.00021643,2]
[379051140,1755101474102,-460.0,0.00021643,2]
[379051141,1755101474112,-460.0,0.00021643,2]
[379051142,1755101474121,-702.93,0.00021643,2]
[379051143,1755101474130,-460.0,0.00021643,2]
[379051144,1755101474140,-505.81,0.00021643,2]
[379051145,1755101474149,-982.95,0.00021643,2]
[379051146,1755101474159,-460.0,0.00021643,2]
[379051147,1755101474168,-731.73,0.00021643,2]
[379051148,1755101474178,-460.0,0.00021643,2]
[379051149,1755101474188,-460.0,0.00021643,2]
[379051150,1755101474197,-460.0,0.00021643,2]
[379051151,1755101474207,-976.41,0.00021643,2]
[379051152,1755101474216,-500.4966194,0.00021643,2]
[379051153,1755101474225,-283.07757377,0.00021643,2]
[379051154,1755101474235,-3927.56,0.00021643,2]
[379051155,1755101474244,-460.0,0.00021643,2]
[379051156,1755101474254,-519.18,0.00021643,2]
[379051157,1755101474263,-572.82,0.00021643,2]
[379051158,1755101474273,-460.0,0.00021643,2]
[379051159,1755101474283,-460.0,0.00021643,2]
[379051160,1755101474294,-460.0,0.00021643,2]
[379051161,1755101474303,-460.0,0.00021643,2]
[379051162,1755101474312,-460.0,0.00021643,2]
[379051163,1755101474321,-460.0,0.00021643,2]
[379051164,1755101474331,-595.06,0.00021643,2]
[379051165,1755101474341,-4546.09,0.00021643,2]
[379051166,1755101474351,-460.0,0.00021643,2]
[379051167,1755101474360,-792.01,0.00021643,2]
[379051168,1755101474370,-460.0,0.00021643,2]
[379051169,1755101474380,-460.0,0.00021643,2]
[379051170,1755101474391,-460.0,0.00021643,2]
[379051171,1755101474400,-460.0,0.00021643,2]
[379051172,1755101474409,-2656.85,0.00021643,2]
[379051173,1755101474419,-460.0,0.00021643,2]
[379051174,1755101474427,-460.0,0.00021643,2]
[379051175,1755101474437,-800.85,0.00021643,2]
[379051176,1755101474446,-1070.19,0.00021643,2]
[379051177,1755101474456,-460.0,0.00021643,2]
[379051178,1755101474466,-460.0,0.00021643,2]
[379051179,1755101474475,-460.0,0.00021643,2]
[379051180,1755101474485,-701.9,0.00021643,2]
[379051181,1755101474495,-460.0,0.00021643,2]
[379051182,1755101474505,-240.84170047,0.00021643,2]
[379051183,1755101474515,-1750.46,0.00021643,2]
[379051184,1755101474525,-460.0,0.00021643,2]
[379051185,1755101474535,-848.78,0.00021643,2]
[379051186,1755101474545,-460.0,0.00021643,2]
[379051187,1755101474554,-460.0,0.00021643,2]
[379051188,1755101474564,-194.20453005,0.00021643,2]
[379051189,1755101474574,-460.0,0.00021643,2]
[379051190,1755101474584,-3119.29,0.00021643,2]
[379051191,1755101474594,-1296.19,0.00021643,2]
[379051192,1755101474604,-613.21,0.00021643,2]
[379051193,1755101474613,-1428.08,0.00021643,2]
[379051194,1755101474729,-460.0,0.00021643,2]
[379051195,1755101474740,-965.16,0.00021643,2]
[379051196,1755101474750,-4237.64,0.00021643,2]
[379051197,1755101474761,-460.0,0.00021643,2]
[379051198,1755101474773,-460.0,0.00021643,2]
[379051199,1755101474783,-974.49,0.00021643,2]
[379051200,1755101474795,-460.0,0.00021643,2]
[379051201,1755101474805,-460.0,0.00021643,2]
[379051202,1755101474815,-1980.3,0.00021643,2]
[379051203,1755101474825,-460.0,0.00021643,2]
[379051204,1755101474835,-666.67,0.00021643,2]
[379051205,1755101474846,-460.0,0.00021643,2]
[379051206,1755101474857,-460.0,0.00021643,2]
[379051207,1755101474866,-978.01,0.00021643,2]
[379051208,1755101474876,-4436.23,0.00021643,2]
[379051209,1755101474885,-460.0,0.00021643,2]
[379051210,1755101474895,-567.51,0.00021643,2]
[379051211,1755101474905,-2457.62,0.00021643,2]
[379051212,1755101474914,-460.0,0.00021643,2]
[379051213,1755101474924,-460.0,0.00021643,2]
[379051214,1755101474933,-460.0,0.00021643,2]
[379051215,1755101474943,-528.03,0.00021643,2]
[379051216,1755101474952,-800.0,0.00021916,2]
[379051217,1755101474962,-460.0,0.00021917,2]
[379051218,1755101474971,-460.0,0.00021917,2]
[379051219,1755101474980,-831.07,0.00021917,2]
[379051220,1755101474990,-460.0,0.00021917,2]
[379051221,1755101474999,-367.99,0.00021917,2]
[379051222,1755101475008,-460.0,0.00021917,2]
[379051223,1755101475018,-572.68,0.00021917,2]
[379051224,1755101475028,-656.93,0.00021917,2]
[379051225,1755101475037,-460.0,0.00021917,2]
[379051226,1755101475047,-467.85,0.00021917,2]
[379051227,1755101475057,-460.0,0.00021917,2]
[379051228,1755101475066,-195.22193377,0.00021917,2]
[379051229,1755101475076,-460.0,0.00021917,2]
[379051230,1755101475085,-460.0,0.00021917,2]
[379051231,1755101475095,-522.0,0.00021917,2]
[379051232,1755101475104,-296.26017136,0.00021917,2]
[379051233,1755101475113,-460.0,0.00021917,2]
[379051234,1755101475123,-460.0,0.00021917,2]
[379051235,1755101475133,-460.0,0.00021917,2]
[379051236,1755101475142,-460.0,0.00021917,2]
[379051237,1755101475151,-460.0,0.00021917,2]
[379051238,1755101475161,-460.0,0.00021917,2]
[379051239,1755101475170,-1095.68,0.00021917,2]
[379051240,1755101475179,-460.0,0.00021917,2]
[379051241,1755101475188,-460.0,0.00021917,2]
[379051242,1755101475198,-460.0,0.00021917,2]
[379051243,1755101475207,-460.0,0.00021917,2]
[379051244,1755101475216,-460.0,0.00021917,2]
[379051245,1755101475226,-460.0,0.00021917,2]
[379051246,1755101475236,-460.0,0.00021917,2]
[379051247,1755101475245,-460.0,0.00021917,2]
[379051248,1755101475255,-460.0,0.00021917,2]
[379051249,1755101475265,-268.8,0.00021917,2]
[379051250,1755101475275,-571.78,0.00021917,2]
[379051251,1755101475284,-393.95,0.00021917,2]
[379051252,1755101475293,-3084.82,0.00021917,2]
[379051253,1755101475303,-460.0,0.00021917,2]
[379051254,1755101475312,-460.0,0.00021917,2]
[379051255,1755101475322,-556.29,0.00021917,2]
[379051256,1755101475331,-591.36,0.00021917,2]
[379051257,1755101475341,-460.0,0.00021917,2]
[379051258,1755101475350,-915.49,0.00021917,2]
[379051259,1755101475359,-927.18,0.00021917,2]
[379051260,1755101475368,-573.84788602,0.00021917,2]
[379051261,1755101475377,-545.40442904,0.00021917,2]
[379051262,1755101475386,-460.0,0.00021917,2]
[379051263,1755101475396,-460.0,0.00021917,2]
[379051264,1755101475405,-460.0,0.00021917,2]
[379051265,1755101475414,-460.0,0.00021917,2]
[379051266,1755101475424,-460.0,0.00021917,2]
[379051267,1755101475433,-845.51,0.00021917,2]
[379051268,1755101475443,-460.0,0.00021917,2]
[379051269,1755101475452,-882.55,0.00021917,2]
[379051270,1755101475462,-460.0,0.00021917,2]
[379051271,1755101475471,-858.51,0.00021917,2]
[379051272,1755101475480,-259.1,0.00021917,2]
[379051273,1755101475490,-460.0,0.00021917,2]
[379051274,1755101475499,-1053.85,0.00021917,2]
[379051275,1755101475509,-460.0,0.00021917,2]
[379051276,1755101475518,-460.0,0.00021917,2]
[379051277,1755101475528,-460.0,0.00021917,2]
[379051278,1755101475537,-541.41,0.00021917,2]
[379051279,1755101475548,-460.0,0.00021917,2]
[379051280,1755101475558,-175.75,0.00021917,2]
[379051281,1755101475567,-460.0,0.00021917,2]
[379051282,1755101475577,-460.0,0.00021917,2]
[379051283,1755101475587,-460.0,0.00021917,2]
[379051284,1755101475596,-699.32,0.00021917,2]
[379051285,1755101475605,-460.0,0.00021917,2]
[379051286,1755101475615,-460.0,0.00021917,2]
[379051287,1755101475624,-460.0,0.00021917,2]
[379051288,1755101475634,-460.0,0.00021917,2]
[379051289,1755101475644,-194.61,0.00021917,2]
[379051290,1755101475654,-460.0,0.00021917,2]
[379051291,1755101475664,-460.0,0.00021917,2]
[379051292,1755101475673,-460.0,0.00021917,2]
[379051293,1755101475683,-460.0,0.00021917,2]
[379051294,1755101475692,-460.0,0.00021917,2]
[379051295,1755101475702,-703.16,0.00021917,2]
[379051296,1755101475711,-460.0,0.00021917,2]
[379051297,1755101475721,-701.16,0.00021917,2]
[379051298,1755101475730,-948.1,0.00021917,2]
[379051299,1755101475740,-941.35,0.00021917,2]
[379051300,1755101475749,-460.0,0.00021917,2]
[379051301,1755101475759,-460.0,0.00021917,2]
[379051302,1755101475775,-762.82,0.00021917,2]
[379051303,1755101475785,-460.0,0.00021917,2]
[379051304,1755101475795,-844.92,0.00021917,2]
[379051305,1755101475808,-565.36,0.00021917,2]
[379051306,1755101475819,-460.0,0.00021917,2]
[379051307,1755101475829,-486.12,0.00021917,2]
[379051308,1755101475840,-1077.76,0.00021917,2]
[379051309,1755101475855,-4161.77,0.00021917,2]
[379051310,1755101475864,-469.55,0.00021917,2]
[379051311,1755101475874,-460.0,0.00021917,2]
[379051312,1755101475883,-707.61,0.00021917,2]
[379051313,1755101475893,-460.0,0.00021917,2]
[379051314,1755101475902,-605.75,0.00021917,2]
[379051315,1755101475912,-460.0,0.00021917,2]
[379051316,1755101475921,-460.0,0.00021917,2]
[379051317,1755101475931,-8328.58,0.00021917,2]
[379051318,1755101475941,-460.0,0.00021917,2]
[379051319,1755101475950,-512.26,0.00021917,2]
[379051320,1755101475960,-788.9,0.00021917,2]
[379051321,1755101475969,-1171.67,0.00021917,2]
[379051322,1755101475978,-960.06,0.00021917,2]
[379051323,1755101475988,-460.0,0.00021917,2]
[379051324,1755101475998,-460.0,0.00021917,2]
[379051325,1755101476007,-460.0,0.00021917,2]
[379051326,1755101476016,-801.23,0.00021917,2]
[379051327,1755101476026,-460.0,0.00021917,2]
[379051328,1755101476035,-460.0,0.00021917,2]
[379051329,1755101476045,-702.93,0.00021917,2]
[379051330,1755101476054,-460.0,0.00021917,2]
[379051331,1755101476064,-505.81,0.00021917,2]
[379051332,1755101476073,-982.95,0.00021917,2]
[379051333,1755101476083,-460.0,0.00021917,2]
[379051334,1755101476092,-500.0,0.00021917,2]
[379051335,1755101476101,-500.0,0.00021917,2]
[379051336,1755101476110,-500.0,0.00021917,2]
[379051337,1755101476120,-500.0,0.00021917,2]
[379051338,1755101476130,-500.0,0.00021917,2]
[379051339,1755101476139,-500.0,0.00021917,2]
[379051340,1755101476148,-500.0,0.00021917,2]
[379051341,1755101476157,-500.0,0.00021917,2]
[379051342,1755101476166,-500.0,0.00021917,2]
[379051343,1755101476175,-500.0,0.00021917,2]
[379051344,1755101476184,-500.0,0.00021917,2]
[379051345,1755101476194,-731.73,0.00021917,2]
[379051346,1755101476204,-460.0,0.00021917,2]
[379051347,1755101476214,-460.0,0.00021917,2]
[379051348,1755101476223,-460.0,0.00021917,2]
[379051349,1755101476232,-976.41,0.00021917,2]
[379051350,1755101476242,-3927.56,0.00021917,2]
[379051351,1755101476251,-460.0,0.00021917,2]
[379051352,1755101476262,-519.18,0.00021917,2]
[379051353,1755101476271,-572.82,0.00021917,2]
[379051354,1755101476281,-460.0,0.00021917,2]
[379051355,1755101476290,-460.0,0.00021917,2]
[379051356,1755101476299,-460.0,0.00021917,2]
[379051357,1755101476308,-460.0,0.00021917,2]
[379051358,1755101476317,-460.0,0.00021917,2]
[379051359,1755101476327,-460.0,0.00021917,2]
[379051360,1755101476336,-595.06,0.00021917,2]
[379051361,1755101476346,-4546.09,0.00021917,2]
[379051362,1755101476355,-460.0,0.00021917,2]
[379051363,1755101476364,-792.01,0.00021917,2]
[379051364,1755101476373,-460.0,0.00021917,2]
[379051365,1755101476383,-460.0,0.00021917,2]
[379051366,1755101476392,-460.0,0.00021917,2]
[379051367,1755101476401,-460.0,0.00021917,2]
[379051368,1755101476412,-2656.85,0.00021917,2]
[379051369,1755101476421,-460.0,0.00021917,2]
[379051370,1755101476431,-460.0,0.00021917,2]
[379051371,1755101476440,-800.85,0.00021917,2]
[379051372,1755101476450,-1070.19,0.00021917,2]
[379051373,1755101476460,-460.0,0.00021917,2]
[379051374,1755101476469,-523.61895305,0.00021917,2]
[379051375,1755101476479,-460.0,0.00021917,2]
[379051376,1755101476488,-701.9,0.00021917,2]
[379051377,1755101476498,-460.0,0.00021917,2]
[379051378,1755101476507,-1750.46,0.00021917,2]
[379051379,1755101476518,-460.0,0.00021917,2]
[379051380,1755101476527,-848.78,0.00021917,2]
[379051381,1755101476537,-460.0,0.00021917,2]
[379051382,1755101476547,-460.0,0.00021917,2]
[379051383,1755101476557,-460.0,0.00021917,2]
[379051384,1755101476567,-3119.29,0.00021917,2]
[379051385,1755101476577,-1296.19,0.00021917,2]
[379051386,1755101476586,-613.21,0.00021917,2]
[379051387,1755101476595,-1428.08,0.00021917,2]
[379051388,1755101476605,-460.0,0.00021917,2]
[379051389,1755101476615,-965.16,0.00021917,2]
[379051390,1755101476625,-4237.64,0.00021917,2]
[379051391,1755101476635,-460.0,0.00021917,2]
[379051392,1755101476644,-298.88287499,0.00021917,2]
[379051393,1755101476654,-974.49,0.00021917,2]
[379051394,1755101476664,-521.0332982,0.00021917,2]
[379051395,1755101476674,-460.0,0.00021917,2]
[379051396,1755101476683,-1980.3,0.00021917,2]
[379051397,1755101476693,-460.0,0.00021917,2]
[379051398,1755101476703,-666.67,0.00021917,2]
[379051399,1755101476712,-460.0,0.00021917,2]
[379051400,1755101476722,-460.0,0.00021917,2]
[379051401,1755101476732,-978.01,0.00021917,2]
[379051402,1755101476842,-2601.94155986,0.00021917,2]
[379051403,1755101477059,-3502.61,0.00021369,2]
[379051404,1755101477070,-1834.28844014,0.00021917,2]
[379051405,1755101477079,-460.0,0.00021917,2]
[379051406,1755101477089,-2457.62,0.00021917,2]
[379051407,1755101477098,-567.51,0.00021917,2]
[379051408,1755101477109,-501.47344629,0.00021917,2]
[379051409,1755101477118,-460.0,0.00021917,2]
[379051410,1755101477133,-528.03,0.00021917,2]
[379051411,1755101477152,-151.0,0.00021918,2]
[379051412,1755101477172,-534.14,0.00022,2]
[379051413,1755101477181,-1100.73134024,0.00022,7]
[379051414,1755101477193,-4409.18865976,0.00022,7]
[379051415,1755101477203,-25859.89087103,0.00022,2]
[379051416,1755101477213,-11915.96,0.00022,7]
[379051417,1755101477223,-175.12,0.00022,2]
[379051418,1755101477232,-212.56739523,0.00022164,2]
[379051419,1755101477241,-460.0,0.00022191,2]
[379051420,1755101477251,-460.0,0.00022191,2]
[379051421,1755101477260,-831.07,0.00022191,2]
[379051422,1755101477269,-460.0,0.00022191,2]
[379051423,1755101477279,-460.0,0.00022191,2]
[379051424,1755101477288,-572.68,0.00022191,2]
[379051425,1755101477299,-656.93,0.00022191,2]
[379051426,1755101477308,-460.0,0.00022191,2]
[379051427,1755101477318,-467.85,0.00022191,2]
[379051428,1755101477327,-460.0,0.00022191,2]
[379051429,1755101477336,-460.0,0.00022191,2]
[379051430,1755101477345,-460.0,0.00022191,2]
[379051431,1755101477355,-522.0,0.00022191,2]
[379051432,1755101477365,-460.0,0.00022191,2]
[379051433,1755101477375,-496.329874,0.00022191,2]
[379051434,1755101477384,-460.0,0.00022191,2]
[379051435,1755101477394,-460.0,0.00022191,2]
[379051436,1755101477403,-460.0,0.00022191,2]
[379051437,1755101477412,-393.72018029,0.00022191,2]
[379051438,1755101477422,-1095.68,0.00022191,2]
[379051439,1755101477431,-450.31670798,0.00022191,2]
[379051440,1755101477441,-460.0,0.00022191,2]
[379051441,1755101477451,-460.0,0.00022191,2]
[379051442,1755101477461,-460.0,0.00022191,2]
[379051443,1755101477471,-460.0,0.00022191,2]
[379051444,1755101477483,-460.0,0.00022191,2]
[379051445,1755101477501,-460.0,0.00022191,2]
[379051446,1755101477511,-460.0,0.00022191,2]
[379051447,1755101477522,-460.0,0.00022191,2]
[379051448,1755101477532,-571.78,0.00022191,2]
[379051449,1755101477542,-3084.82,0.00022191,2]
[379051450,1755101477552,-460.0,0.00022191,2]
[379051451,1755101477562,-460.0,0.00022191,2]
[379051452,1755101477571,-556.29,0.00022191,2]
[379051453,1755101477580,-567.09,0.00022191,2]
[379051454,1755101477590,-915.49,0.00022191,2]
[379051455,1755101477599,-927.18,0.00022191,2]
[379051456,1755101477609,-460.0,0.00022191,2]
[379051457,1755101477618,-460.0,0.00022191,2]
[379051458,1755101477627,-250.32,0.00022191,2]
[379051459,1755101477637,-460.0,0.00022191,2]
[379051460,1755101477646,-845.51,0.00022191,2]
[379051461,1755101477655,-460.0,0.00022191,2]
[379051462,1755101477666,-882.55,0.00022191,2]
[379051463,1755101477675,-460.0,0.00022191,2]
[379051464,1755101477685,-858.51,0.00022191,2]
[379051465,1755101477706,-460.0,0.00022191,2]
[379051466,1755101477723,-1053.85,0.00022191,2]
[379051467,1755101477732,-460.0,0.00022191,2]
[379051468,1755101477742,-208.80854831,0.00022191,2]
[379051469,1755101477751,-460.0,0.00022191,2]
[379051470,1755101477761,-541.41,0.00022191,2]
[379051471,1755101477773,-460.0,0.00022191,2]
[379051472,1755101477782,-460.0,0.00022191,2]
[379051473,1755101477791,-460.0,0.00022191,2]
[379051474,1755101477801,-581.43397528,0.00022191,2]
[379051475,1755101477812,-699.32,0.00022191,2]
[379051476,1755101477822,-301.8,0.00022191,2]
[379051477,1755101477831,-460.0,0.00022191,2]
[379051478,1755101477840,-460.0,0.00022191,2]
[379051479,1755101477850,-460.0,0.00022191,2]
[379051480,1755101477859,-460.0,0.00022191,2]
[379051481,1755101477868,-460.0,0.00022191,2]
[379051482,1755101477877,-460.0,0.00022191,2]
[379051483,1755101477887,-460.0,0.00022191,2]
[379051484,1755101477896,-460.0,0.00022191,2]
[379051485,1755101477906,-703.16,0.00022191,2]
[379051486,1755101477915,-460.0,0.00022191,2]
[379051487,1755101477924,-701.16,0.00022191,2]
[379051488,1755101477934,-948.1,0.00022191,2]
[379051489,1755101477943,-941.35,0.00022191,2]
[379051490,1755101477952,-194.86935649,0.00022191,2]
[379051491,1755101477961,-460.0,0.00022191,2]
[379051492,1755101477970,-762.82,0.00022191,2]
[379051493,1755101477979,-316.83097126,0.00022191,2]
[379051494,1755101477989,-844.92,0.00022191,2]
[379051495,1755101477998,-565.36,0.00022191,2]
[379051496,1755101478008,-460.0,0.00022191,2]
[379051497,1755101478017,-486.12,0.00022191,2]
[379051498,1755101478026,-1077.76,0.00022191,2]
[379051499,1755101478036,-4161.77,0.00022191,2]
[379051500,1755101478046,-460.0,0.00022191,2]
[379051501,1755101478056,-707.61,0.00022191,2]
[379051502,1755101478065,-460.0,0.00022191,2]
[379051503,1755101478075,-605.75,0.00022191,2]
[379051504,1755101478085,-460.0,0.00022191,2]
[379051505,1755101478095,-460.0,0.00022191,2]
[379051506,1755101478104,-8328.58,0.00022191,2]
[379051507,1755101478114,-282.38,0.00022191,2]
[379051508,1755101478124,-512.26,0.00022191,2]
[379051509,1755101478135,-788.9,0.00022191,2]
[379051510,1755101478144,-1171.67,0.00022191,2]
[379051511,1755101478154,-960.06,0.00022191,2]
[379051512,1755101478163,-460.0,0.00022191,2]
[379051513,1755101478173,-460.0,0.00022191,2]
[379051514,1755101478182,-460.0,0.00022191,2]
[379051515,1755101478192,-801.23,0.00022191,2]
[379051516,1755101478202,-460.0,0.00022191,2]
[379051517,1755101478211,-460.0,0.00022191,2]
[379051518,1755101478221,-702.93,0.00022191,2]
[379051519,1755101478230,-460.0,0.00022191,2]
[379051520,1755101478239,-505.81,0.00022191,2]
[379051521,1755101478248,-982.95,0.00022191,2]
[379051522,1755101478258,-460.0,0.00022191,2]
[379051523,1755101478268,-500.0,0.00022191,2]
[379051524,1755101478278,-731.73,0.00022191,2]
[379051525,1755101478299,-460.0,0.00022191,2]
[379051526,1755101478312,-460.0,0.00022191,2]
[379051527,1755101478322,-460.0,0.00022191,2]
[379051528,1755101478331,-976.41,0.00022191,2]
[379051529,1755101478341,-3927.56,0.00022191,2]
[379051530,1755101478351,-460.0,0.00022191,2]
[379051531,1755101478362,-519.18,0.00022191,2]
[379051532,1755101478372,-572.82,0.00022191,2]
[379051533,1755101478382,-460.0,0.00022191,2]
[379051534,1755101478392,-460.0,0.00022191,2]
[379051535,1755101478401,-460.0,0.00022191,2]
[379051536,1755101478411,-460.0,0.00022191,2]
[379051537,1755101478422,-460.0,0.00022191,2]
[379051538,1755101478432,-460.0,0.00022191,2]
[379051539,1755101478443,-595.06,0.00022191,2]
[379051540,1755101478452,-4546.09,0.00022191,2]
[379051541,1755101478462,-460.0,0.00022191,2]
[379051542,1755101478471,-792.01,0.00022191,2]
[379051543,1755101478481,-460.0,0.00022191,2]
[379051544,1755101478490,-460.0,0.00022191,2]
[379051545,1755101478500,-460.0,0.00022191,2]
[379051546,1755101478509,-460.0,0.00022191,2]
[379051547,1755101478519,-2656.85,0.00022191,2]
[379051548,1755101478528,-460.0,0.00022191,2]
[379051549,1755101478538,-460.0,0.00022191,2]
[379051550,1755101478550,-800.85,0.00022191,2]
[379051551,1755101478560,-1070.19,0.00022191,2]
[379051552,1755101478570,-460.0,0.00022191,2]
[379051553,1755101478580,-460.0,0.00022191,2]
[379051554,1755101478590,-701.9,0.00022191,2]
[379051555,1755101478600,-363.52,0.00022191,2]
[379051556,1755101478609,-1750.46,0.00022191,2]
[379051557,1755101478619,-460.0,0.00022191,2]
[379051558,1755101478627,-848.78,0.00022191,2]
[379051559,1755101478638,-460.0,0.00022191,2]
[379051560,1755101478647,-460.0,0.00022191,2]
[379051561,1755101478656,-460.0,0.00022191,2]
[379051562,1755101478773,-3119.29,0.00022191,2]
[379051563,1755101478784,-1296.19,0.00022191,2]
[379051564,1755101478795,-613.21,0.00022191,2]
[379051565,1755101478804,-1428.08,0.00022191,2]
[379051566,1755101478815,-965.16,0.00022191,2]
[379051567,1755101478824,-627.32438415,0.00022191,2]
[379051568,1755101478840,-1978.24623956,0.00022191,2]
[379051569,1755101478852,-1632.06937629,0.00022191,2]
[379051570,1755101478862,-460.0,0.00022191,2]
[379051571,1755101478872,-974.49,0.00022191,2]
[379051572,1755101478882,-460.0,0.00022191,2]
[379051573,1755101478891,-1980.3,0.00022191,2]
[379051574,1755101478900,-460.0,0.00022191,2]
[379051575,1755101478911,-666.67,0.00022191,2]
[379051576,1755101478920,-390.20722377,0.00022191,2]
[379051577,1755101479037,-460.0,0.00019178,2]
[379051578,1755101479047,-460.0,0.00019178,2]
[379051579,1755101479057,-268.75138159,0.00019452,2]
[379051580,1755101479067,-460.0,0.00019452,2]
[379051581,1755101479076,-3502.61,0.00021643,2]
[379051582,1755101479086,-3502.61,0.00021917,2]
[379051583,1755101479095,-69.79277623,0.00022191,2]
[379051584,1755101479105,-460.0,0.00022191,2]
[379051585,1755101479114,-978.01,0.00022191,2]
[379051586,1755101479123,-460.0,0.00022191,2]
[379051587,1755101479133,-2457.62,0.00022191,2]
[379051588,1755101479143,-567.51,0.00022191,2]
[379051589,1755101479153,-460.0,0.00022191,2]
[379051590,1755101479162,-528.03,0.00022191,2]
[379051591,1755101479171,-3502.61,0.00022191,2]
[379051592,1755101479180,-4351.90977345,0.00022191,2]
[379051593,1755101479192,-84.32022655,0.00022191,2]
[379051594,1755101479201,-1000.0,0.00022464,2]
[379051595,1755101479211,-460.0,0.00022465,2]
[379051596,1755101479219,-430.67977345,0.00022465,2]
[379051597,1755101479831,-460.0,0.00019178,2]
[379051598,1755101479842,-340.32954256,0.00019178,2]
[379051602,1755101639528,500.0,0.00026,120]
[379051604,1755101660977,804.17,0.00026,120]
[379051605,1755101758856,1520.55,0.00026,120]
[379051610,1755102175430,5000.0,0.0001901,6]
[379051611,1755102183402,5000.0,0.0001901,6]
[379051612,1755102198835,5000.0,0.00018791,2]
[379051614,1755102214708,1620.29870134,0.00018791,2]
[379051616,1755102243919,429.13201285,0.00018228,2]
[379051618,1755102252768,1137.15313737,0.00018778,2]
[379051619,1755102292493,277.56475007,0.00018778,2]
[379051645,1755102346428,162.915959,0.00013699,2]
[379051656,1755102375061,161.792172,0.00018127,2]
[379051678,1755102495043,157.05232204,0.00018777,2]
[379051683,1755102521328,6554.19821591,0.000185,2]
[379051686,1755102541120,157.05232202,0.00018752,2]
[379051690,1755102563888,457.493584,0.00018692,2]
[379051691,1755102565701,2797.3212732,0.00018116,2]
[379051743,1755102631851,-165.13115906,0.00018877,2]
[379051745,1755102631861,-165.13115904,0.00018978,2]
[379051747,1755102631870,-165.13115904,0.00019078,2]
[379051749,1755102631879,-300.0,0.00019165,2]
[379051751,1755102631889,-1200.0,0.00019165,2]
[379051753,1755102631898,-151.0,0.00019166,2]
[379051755,1755102631907,-151.0,0.00019166,2]
[379051757,1755102631916,-156.04189223,0.00019166,2]
[379051758,1755102631926,-151.0,0.00019166,2]
[379051761,1755102631935,-151.0,0.00019166,2]
[379051763,1755102631944,-151.0,0.00019166,2]
[379051765,1755102631954,-151.0,0.00019166,2]
[379051767,1755102631963,-151.0,0.00019166,2]
[379051769,1755102631973,-151.0,0.00019166,2]
[379051771,1755102631982,-151.0,0.00019166,2]
[379051773,1755102631992,-151.0,0.00019166,2]
[379051775,1755102632002,-151.0,0.00019166,2]
[379051777,1755102632011,-151.0,0.00019166,2]
[379051779,1755102632021,-562.97348677,0.00019173,2]
[379051781,1755102632030,-500.0,0.00019173,2]
[379051783,1755102632040,-501.03224789,0.00019173,2]
[379051785,1755102632051,-500.0,0.00019173,2]